bitfinex/quotes_BTCUSD_20251110
["timestamp","ask_amount","ask_price","bid_price","bid_amount"]
[1762775591525,0.25622227,106300.0,106290.0,0.18995799]
[1762775591857,0.58769971,106300.0,106290.0,0.18995799]
[1762775592073,0.58769438,106300.0,106290.0,0.18995799]
[1762775592437,0.39954763,106300.0,106290.0,0.18995799]
[1762775592646,0.25621694,106300.0,106290.0,0.18995799]
[1762775597359,0.58769438,106300.0,106290.0,0.18995799]
[1762775598714,0.58769438,106300.0,106290.0,0.00179354]
[1762775602625,0.68100499,106300.0,106290.0,0.00179354]
[1762775602776,0.34952755,106300.0,106290.0,0.00179354]
[1762775602979,0.68100499,106300.0,106290.0,0.00179354]
[1762775603944,0.58769438,106300.0,106290.0,0.00179354]
[1762775605693,0.91917182,106300.0,106290.0,0.00179354]
[1762775605903,0.61594489,106300.0,106290.0,0.00179354]
[1762775608450,0.28446745,106300.0,106290.0,0.00179354]
[1762775609258,0.28446745,106300.0,106290.0,0.18995799]
[1762775609394,0.61594489,106300.0,106290.0,0.18995799]
[1762775609592,0.32582745,106300.0,106290.0,0.18995799]
[1762775609803,0.29757694,106300.0,106290.0,0.18995799]
[1762775610666,0.06807019,106300.0,106290.0,0.18995799]
[1762775610873,0.25621694,106300.0,106290.0,0.18995799]
[1762775613288,0.25621694,106300.0,106290.0,0.18891965]
[1762775616531,0.06807019,106300.0,106290.0,0.18891965]
[1762775617811,0.06807019,106300.0,106290.0,0.52039709]
[1762775618016,0.05043,106300.0,106290.0,0.52039709]
[1762775618223,0.02744,106300.0,106290.0,0.54864233]
[1762775618650,0.05074,106300.0,106290.0,0.54864233]
[1762775619915,0.05074,106300.0,106290.0,0.54911274]
[1762775620572,0.23888675,106300.0,106290.0,0.2176353]
[1762775620794,0.23888675,106300.0,106290.0,0.54864233]
[1762775622026,0.23888675,106300.0,106290.0,0.21716489]
[1762775623503,0.57036419,106300.0,106290.0,0.2176353]
[1762775623710,0.23888675,106300.0,106290.0,0.21716489]
[1762775625275,0.05074,106300.0,106290.0,0.21716489]
[1762775625449,0.23888675,106300.0,106290.0,0.21716489]
[1762775628191,0.23888675,106300.0,106290.0,0.02900044]
[1762775629802,0.57036419,106300.0,106290.0,0.02900044]
[1762775630440,0.23888675,106300.0,106290.0,0.02900044]
[1762775634617,0.23888675,106300.0,106290.0,0.21716489]
[1762775634775,0.23888675,106300.0,106290.0,0.02900044]
[1762775636936,0.57036419,106300.0,106290.0,0.0007552]
[1762775638274,0.23888675,106300.0,106290.0,0.0007552]
[1762775638477,0.57036419,106300.0,106290.0,0.0007552]
[1762775639597,0.25652192,106300.0,106290.0,0.0007552]
[1762775639835,0.58799936,106300.0,106290.0,0.0007552]
[1762775640047,0.6772047,106300.0,106290.0,0.0007552]
[1762775641058,2.52038114,106300.0,106290.0,0.0007552]
[1762775642447,0.18816445,106290.0,106280.0,0.00048103]
[1762775642638,0.68779363,106290.0,106280.0,0.00048103]
[1762775642978,0.66427308,106290.0,106280.0,0.0007142]
[1762775643970,0.66627308,106290.0,106280.0,0.0007142]
[1762775645234,0.64863791,106290.0,106280.0,0.0007142]
[1762775646787,0.74673964,106290.0,106280.0,0.0007142]
[1762775649108,0.74683304,106290.0,106280.0,0.0007142]
[1762775651494,0.76444215,106290.0,106280.0,0.0007142]
[1762775651675,0.79269415,106290.0,106280.0,0.0007142]
[1762775652926,0.69459242,106290.0,106280.0,0.0007142]
[1762775653094,1.02616326,106290.0,106280.0,0.0007142]
[1762775653440,1.79126654,106290.0,106280.0,0.0007142]
[1762775653665,2.11426654,106290.0,106280.0,0.0007142]
[1762775654084,1.56948254,106290.0,106280.0,0.0007142]
[1762775654295,1.66858427,106290.0,106280.0,0.0007142]
[1762775654641,1.66758427,106290.0,106280.0,0.0007142]
[1762775655500,1.66958427,106290.0,106280.0,0.0007142]
[1762775655821,1.66758427,106290.0,106280.0,0.0007142]
[1762775655965,1.67158427,106290.0,106280.0,0.0007142]
[1762775656144,1.67558427,106290.0,106280.0,0.0007142]
[1762775657220,1.71694427,106290.0,106280.0,0.0007142]
[1762775659870,1.53080727,106290.0,106280.0,0.0007142]
[1762775660080,1.0597747,106290.0,106280.0,0.0007142]
[1762775660290,1.2075807,106290.0,106280.0,0.0007142]
[1762775660504,1.1011347,106290.0,106280.0,0.0007142]
[1762775660711,1.3834107,106290.0,106280.0,0.0007142]
[1762775660921,1.44281243,106290.0,106280.0,0.0007142]
[1762775661329,1.19923643,106290.0,106280.0,0.0007142]
[1762775662609,1.30561243,106290.0,106280.0,0.0007142]
[1762775663798,1.19923643,106290.0,106280.0,0.0007142]
[1762775664584,1.49835143,106290.0,106280.0,0.0007142]
[1762775669569,1.16678059,106290.0,106280.0,0.0007142]
[1762775669741,1.4002497,106290.0,106280.0,0.0007142]
[1762775670395,1.73182054,106290.0,106280.0,0.0007142]
[1762775673336,1.06867886,106290.0,106280.0,0.0007142]
[1762775673539,1.73182054,106290.0,106280.0,0.0007142]
[1762775673703,1.7456099,106290.0,106280.0,0.0007142]
[1762775677959,1.5477459,106290.0,106280.0,0.0007142]
[1762775678174,1.53395654,106290.0,106280.0,0.0007142]
[1762775678410,1.53304254,106290.0,106280.0,0.0007142]
[1762775678822,1.62946854,106290.0,106280.0,0.0007142]
[1762775679119,1.65061354,106290.0,106280.0,0.0007142]
[1762775679317,1.49240454,106290.0,106280.0,0.0007142]
[1762775679537,1.59124557,106290.0,106280.0,0.0007142]
[1762775681371,1.68315557,106290.0,106280.0,0.0007142]
[1762775681570,1.1011347,106290.0,106280.0,0.0007142]
[1762775681750,1.43270554,106290.0,106280.0,0.0007142]
[1762775682059,1.1011347,106290.0,106280.0,0.0007142]
[1762775682402,1.2345437,106290.0,106280.0,0.0007142]
[1762775682937,1.2161297,106290.0,106280.0,0.0007142]
[1762775683344,1.31423143,106290.0,106280.0,0.0007142]
[1762775683661,1.27287143,106290.0,106280.0,0.0007142]
[1762775683892,1.19923643,106290.0,106280.0,0.0007142]
[1762775684092,1.50309443,106290.0,106280.0,0.0007142]
[1762775684492,1.4049927,106290.0,106280.0,0.0007142]
[1762775684926,1.73656354,106290.0,106280.0,0.0007142]
[1762775685157,1.53995854,106290.0,106280.0,0.0007142]
[1762775685387,1.43270554,106290.0,106280.0,0.0007142]
[1762775685589,1.1011347,106290.0,106280.0,0.0007142]
[1762775687035,0.69202158,106290.0,106280.0,0.0007142]
[1762775687227,1.06495242,106290.0,106280.0,0.0007142]
[1762775687946,1.02359242,106290.0,106280.0,0.0007142]
[1762775688151,0.73338158,106290.0,106280.0,0.0007142]
[1762775690068,1.06495242,106290.0,106280.0,0.0007142]
[1762775691773,1.06495242,106290.0,106280.0,0.18889636]
[1762775692000,1.03670042,106290.0,106280.0,0.18889636]
[1762775692200,1.03670042,106290.0,106280.0,0.0007142]
[1762775693436,1.07686488,106290.0,106280.0,0.0007142]
[1762775694035,1.03670042,106290.0,106280.0,0.0007142]
[1762775695974,0.67234042,106290.0,106280.0,0.0007142]
[1762775696272,0.67234042,106290.0,106280.0,0.18889636]
[1762775696427,0.71370042,106290.0,106280.0,0.0007142]
[1762775697133,0.71370042,106290.0,106280.0,0.18889636]
[1762775697875,0.71370042,106290.0,106280.0,0.0007142]
[1762775698084,0.67234042,106290.0,106280.0,0.18889636]
[1762775698383,0.67234042,106290.0,106280.0,0.0007142]
[1762775698584,0.67234042,106290.0,106280.0,0.18889636]
[1762775698814,0.67234042,106290.0,106280.0,0.0007142]
[1762775699096,0.67234042,106290.0,106280.0,0.18889636]
[1762775699997,0.67234042,106290.0,106280.0,0.0007142]
[1762775700211,0.67234042,106290.0,106280.0,0.18889636]
[1762775700610,0.07729865,106290.0,106280.0,0.18889636]
[1762775700834,0.05967,106290.0,106280.0,0.18889636]
[1762775701384,0.05967,106290.0,106280.0,0.18936681]
[1762775701594,0.31916047,106290.0,106280.0,0.18936681]
[1762775701791,0.31916047,106290.0,106280.0,0.18889636]
[1762775701993,0.33678409,106290.0,106280.0,0.0007142]
[1762775702238,0.37765134,106290.0,106280.0,0.0007142]
[1762775702437,0.38165134,106290.0,106280.0,0.0007142]
[1762775702636,0.71322218,106290.0,106280.0,0.0007142]
[1762775702837,0.66835493,106290.0,106280.0,0.18889636]
[1762775703251,0.33678409,106290.0,106280.0,0.18889636]
[1762775704860,0.33678409,106290.0,106280.0,0.0007142]
[1762775705068,0.66835493,106290.0,106280.0,0.0007142]
[1762775705852,0.66835493,106290.0,106280.0,0.18889636]
[1762775706325,0.33678409,106290.0,106280.0,0.18889636]
[1762775706734,0.31916047,106290.0,106280.0,0.18889636]
[1762775710989,0.65066826,106290.0,106280.0,0.18889636]
[1762775711136,0.33678458,106290.0,106280.0,0.18889636]
[1762775711525,0.14862013,106290.0,106280.0,0.18889636]
[1762775711700,0.33678458,106290.0,106280.0,0.18889636]
[1762775711903,0.48012792,106290.0,106280.0,0.18889636]
[1762775712850,0.46250381,106290.0,106280.0,0.18889636]
[1762775713014,0.13099602,106290.0,106280.0,0.18889636]
[1762775714206,0.31916047,106290.0,106280.0,0.18889636]
[1762775715045,0.05567,106290.0,106280.0,0.18889636]
[1762775715260,0.13099602,106290.0,106280.0,0.18936681]
[1762775715453,0.46250381,106290.0,106280.0,0.18889636]
[1762775715981,0.13099602,106290.0,106280.0,0.18889636]
[1762775716157,0.14862603,106290.0,106280.0,0.18889636]
[1762775716382,0.13099602,106290.0,106280.0,0.18889636]
[1762775720008,0.31916047,106290.0,106280.0,0.18889636]
[1762775720217,0.05567,106290.0,106280.0,0.18889636]
[1762775720451,0.24383445,106290.0,106280.0,0.18936681]
[1762775720626,0.31916047,106290.0,106280.0,0.18889636]
[1762775721083,0.7357576,106290.0,106280.0,0.0007142]
[1762775721286,0.75338863,106290.0,106280.0,0.0007142]
[1762775721671,0.42188084,106290.0,106280.0,0.0007142]
[1762775722195,0.66829929,106290.0,106280.0,0.0007142]
[1762775724278,0.66829929,106290.0,106280.0,0.18889636]
[1762775724457,0.66829929,106290.0,106280.0,0.0007142]
[1762775725154,0.66829929,106290.0,106280.0,0.18889636]
[1762775725472,0.66829929,106290.0,106280.0,0.0007142]
[1762775727232,0.66829929,106290.0,106280.0,0.18889636]
[1762775727476,0.66829929,106290.0,106280.0,0.0007142]
[1762775728740,0.75124848,106290.0,106280.0,0.0007142]
[1762775729675,1.12407627,106290.0,106280.0,0.0007142]
[1762775730349,0.79256848,106290.0,106280.0,0.0007142]
[1762775733363,0.46106069,106290.0,106280.0,0.0007142]
[1762775733568,0.79256848,106290.0,106280.0,0.0007142]
[1762775735635,1.12407627,106290.0,106280.0,0.0007142]
[1762775735841,0.79256848,106290.0,106280.0,0.0007142]
[1762775738385,1.11556848,106290.0,106280.0,0.0007142]
[1762775738608,2.61522327,106290.0,106280.0,0.0007142]
[1762775738812,2.25170069,106290.0,106280.0,0.0007142]
[1762775739013,2.02020869,106290.0,106280.0,0.0007142]
[1762775739552,1.90666769,106290.0,106280.0,0.0007142]
[1762775740386,2.60586555,106290.0,106280.0,0.0007142]
[1762775740618,2.64498191,106290.0,106280.0,0.0007142]
[1762775741065,2.64497738,106290.0,106280.0,0.0007142]
[1762775741295,2.31346959,106290.0,106280.0,0.0007142]
[1762775742014,2.31346959,106290.0,106280.0,1e-08]
[1762775742015,2.72435082,106290.0,106280.0,1e-08]
[1762775742210,0.18823529,106250.0,106240.0,0.18872364]
[1762775742432,0.54803308,106250.0,106240.0,4.807e-05]
[1762775742815,0.57224308,106250.0,106240.0,0.00098114]
[1762775743035,0.57224308,106250.0,106240.0,0.18923415]
[1762775743458,0.57224308,106250.0,106240.0,0.00098114]
[1762775744753,0.24073529,106250.0,106240.0,0.00198114]
[1762775744978,0.6475691,106250.0,106240.0,0.19023415]
[1762775745187,0.31606131,106250.0,106240.0,0.19023415]
[1762775745395,0.24073529,106250.0,106240.0,0.19023415]
[1762775745605,0.0525,106250.0,106240.0,0.19023415]
[1762775746899,0.24073529,106250.0,106240.0,0.19023415]
[1762775748423,0.0525,106250.0,106240.0,0.19023415]
[1762775749407,0.0525,106250.0,106240.0,0.52174194]
[1762775750036,0.24073529,106250.0,106240.0,0.52174194]
[1762775750430,0.0525,106250.0,106240.0,0.19023415]
[1762775750643,0.01205,106250.0,106240.0,0.52548194]
[1762775750853,0.01205,106250.0,106240.0,0.19444478]
[1762775751066,0.01205,106250.0,106240.0,0.52595257]
[1762775751306,0.0525,106250.0,106240.0,0.52221257]
[1762775752398,0.24073529,106250.0,106240.0,0.00245177]
[1762775752633,0.24073529,106250.0,106240.0,0.00198114]
[1762775752868,0.24073529,106250.0,106240.0,0.19023415]
[1762775753120,0.24073529,106250.0,106240.0,0.00198114]
[1762775755297,0.24073529,106250.0,106240.0,0.19023415]
[1762775757495,0.24073529,106250.0,106240.0,0.00198114]
[1762775758240,0.24073529,106250.0,106240.0,0.19023415]
[1762775762650,0.0525,106250.0,106240.0,0.19023415]
[1762775762900,0.24073529,106250.0,106240.0,0.19023415]
[1762775764180,0.24073529,106250.0,106240.0,0.00198114]
[1762775765240,0.6475691,106250.0,106240.0,0.00198114]
[1762775765546,0.31606131,106250.0,106240.0,0.19023415]
[1762775767022,0.31606131,106250.0,106240.0,0.00198114]
[1762775768087,0.31606131,106250.0,106240.0,0.19023415]
[1762775769196,0.12782602,106250.0,106240.0,0.19023415]
[1762775769621,0.31606131,106250.0,106240.0,0.19023415]
[1762775769840,0.12782602,106250.0,106240.0,0.19023415]
[1762775770718,0.31606131,106250.0,106240.0,0.19023415]
[1762775771121,0.12782602,106250.0,106240.0,0.19023415]
[1762775771319,0.02829,106250.0,106240.0,0.19023415]
[1762775771767,0.22281798,106260.0,106250.0,0.18823529]
[1762775771768,0.01205,106260.0,106250.0,0.18823529]
[1762775772096,0.23850757,106260.0,106250.0,0.19758483]
[1762775772304,0.06794175,106260.0,106250.0,0.19758483]
[1762775772517,0.25615932,106260.0,106250.0,0.18823529]
[1762775773901,0.18823529,106250.0,106240.0,0.18877171]
[1762775774107,0.05063,106250.0,106240.0,0.52004069]
[1762775774317,0.05063,106250.0,106240.0,0.52051132]
[1762775774920,0.05063,106250.0,106240.0,0.52151132]
[1762775775126,0.05063,106250.0,106240.0,0.52351132]
[1762775775490,0.05063,106250.0,106240.0,0.19177171]
[1762775775690,0.05063,106250.0,106240.0,0.52351132]
[1762775776512,0.05063,106250.0,106240.0,0.19177171]
[1762775776658,0.05063,106250.0,106240.0,0.52351132]
[1762775777939,0.05063,106250.0,106240.0,0.19177171]
[1762775778198,0.05063,106250.0,106240.0,0.55176846]
[1762775778405,0.05063,106250.0,106240.0,0.52444439]
[1762775779001,0.05063,106250.0,106240.0,0.19270478]
[1762775779305,0.05063,106250.0,106240.0,0.22096192]
[1762775782470,0.05063,106250.0,106240.0,0.55270153]
[1762775784277,0.05063,106250.0,106240.0,0.22096192]
[1762775784482,0.05063,106250.0,106240.0,0.55270153]
[1762775785828,0.23886529,106250.0,106240.0,0.55270153]
[1762775786034,0.23886529,106250.0,106240.0,0.22049129]
[1762775786673,0.05063,106250.0,106240.0,0.22049129]
[1762775786791,0.23886529,106250.0,106240.0,0.22096192]
[1762775787004,0.05063,106250.0,106240.0,0.22049129]
[1762775787228,0.05063,106250.0,106240.0,0.22096192]
[1762775791475,0.02808,106250.0,106240.0,0.22096192]
[1762775792042,0.05137,106250.0,106240.0,0.22096192]
[1762775794900,0.02808,106250.0,106240.0,0.22049129]
[1762775795048,0.02808,106250.0,106240.0,0.55270153]
[1762775795373,0.02808,106250.0,106240.0,0.5522309]
[1762775795586,0.01239,106250.0,106240.0,0.5522309]
[1762775795790,0.01239,106250.0,106240.0,0.55270153]
[1762775795941,0.01239,106250.0,106240.0,0.6422309]
[1762775796367,0.01239,106250.0,106240.0,0.64270153]
[1762775799601,0.02767,106250.0,106240.0,0.31096192]
[1762775799961,0.02767,106250.0,106240.0,0.64270153]
[1762775800694,0.05096,106250.0,106240.0,0.64270153]
[1762775801460,0.02767,106250.0,106240.0,0.6422309]
[1762775801661,0.01239,106250.0,106240.0,0.64270153]
[1762775804156,0.01239,106250.0,106240.0,0.64644153]
[1762775804438,0.03534,106260.0,106250.0,0.18823529]
[1762775804682,0.24121018,106260.0,106250.0,0.18823529]
[1762775804884,0.25649018,106260.0,106250.0,0.18893503]
[1762775805912,0.25649018,106260.0,106250.0,0.00069974]
[1762775806839,0.58822979,106260.0,106250.0,0.00069974]
[1762775807562,0.25649018,106260.0,106250.0,0.00069974]
[1762775808560,0.25649018,106260.0,106250.0,0.18893503]
[1762775808736,0.25649018,106260.0,106250.0,0.00069974]
[1762775809166,0.25649018,106260.0,106250.0,0.18893503]
[1762775809342,0.25649018,106260.0,106250.0,0.00069974]
[1762775810602,0.25649018,106260.0,106250.0,0.18893503]
[1762775811205,0.25649075,106260.0,106250.0,0.18893503]
[1762775813078,0.25649075,106260.0,106250.0,0.00069974]
[1762775815022,0.58823036,106260.0,106250.0,0.00069974]
[1762775815672,0.58823036,106260.0,106250.0,0.18893503]
[1762775815920,0.62532408,106260.0,106250.0,0.00069974]
[1762775816252,0.58823036,106260.0,106250.0,0.00069974]
[1762775816457,0.25649075,106260.0,106250.0,0.00069974]
[1762775817936,0.58823036,106260.0,106250.0,0.00069974]
[1762775820213,0.25649075,106260.0,106250.0,0.00069974]
[1762775820413,0.58823036,106260.0,106250.0,0.00069974]
[1762775821941,0.58823036,106260.0,106240.0,0.21702803]
[1762775821942,0.18823529,106250.0,106240.0,0.02830521]
[1762775822159,0.18828845,106220.0,106210.0,0.0002]
[1762775822369,0.54563606,106220.0,106210.0,0.0002]
[1762775822589,0.56942606,106220.0,106210.0,0.0002]
[1762775822806,0.59769481,106220.0,106210.0,0.0002]
[1762775823222,0.67727281,106220.0,106210.0,0.0002]
[1762775823708,0.59769481,106220.0,106210.0,0.0002]
[1762775824545,0.59769481,106220.0,106210.0,0.18850618]
[1762775825317,0.63905481,106220.0,106210.0,0.18850618]
[1762775826089,0.3073152,106220.0,106210.0,0.18850618]
[1762775827818,0.11902675,106220.0,106210.0,0.18850618]
[1762775828031,0.3073152,106220.0,106210.0,0.18943965]
[1762775828455,0.63905481,106220.0,106210.0,0.18943965]
[1762775829235,0.59769481,106220.0,106210.0,0.18943965]
[1762775829671,0.2659552,106220.0,106210.0,0.18943965]
[1762775829961,0.59769481,106220.0,106210.0,0.18943965]
[1762775830553,0.40940636,106220.0,106210.0,0.18943965]
[1762775830751,0.59769481,106220.0,106210.0,0.18943965]
[1762775832954,0.40963534,106220.0,106210.0,0.18943965]
[1762775833393,0.59792379,106220.0,106210.0,0.18943965]
[1762775834434,0.2264052,106220.0,106210.0,0.02604347]
[1762775834644,0.2659552,106220.0,106210.0,0.00113347]
[1762775834816,0.59792379,106220.0,106210.0,0.00113347]
[1762775835164,0.92989238,106220.0,106210.0,0.00113347]
[1762775835578,2.48329997,106220.0,106210.0,0.00113347]
[1762775835780,1.40461132,106220.0,106210.0,0.00113347]
[1762775835940,1.41400159,106220.0,106210.0,0.00113347]
[1762775836160,1.51210332,106220.0,106210.0,0.00113347]
[1762775836361,1.50271305,106220.0,106210.0,0.00113347]
[1762775836557,1.50571305,106220.0,106210.0,0.00113347]
[1762775836992,1.51514497,106220.0,106210.0,0.00113347]
[1762775837150,1.82871305,106220.0,106210.0,0.00113347]
[1762775837599,1.86489533,106220.0,106210.0,0.00113347]
[1762775837809,1.86389533,106220.0,106210.0,0.00113347]
[1762775838023,1.86589533,106220.0,106210.0,0.00113347]
[1762775839244,1.87528002,106220.0,106210.0,0.00113347]
[1762775839454,1.86589533,106220.0,106210.0,0.00113347]
[1762775841470,1.72781533,106220.0,106210.0,0.00113347]
[1762775841880,1.73748414,106220.0,106210.0,0.00113347]
[1762775842084,1.72343514,106220.0,106210.0,0.00113347]
[1762775847457,1.74369495,106220.0,106210.0,0.00113347]
[1762775854375,1.43866495,106220.0,106210.0,0.00113347]
[1762775854607,1.60719795,106220.0,106210.0,0.00113347]
[1762775854842,1.42899614,106220.0,106210.0,0.00113347]
[1762775859100,1.47035614,106220.0,106210.0,0.00113347]
[1762775860178,1.37225441,106220.0,106210.0,0.00113347]
[1762775863411,1.37233855,106220.0,106210.0,0.00113347]
[1762775864449,1.39762234,106220.0,106210.0,0.00113347]
[1762775865293,1.37233855,106220.0,106210.0,0.00113347]
[1762775865532,2.43379534,106220.0,106210.0,0.00113347]
[1762775865752,2.34392407,106220.0,106210.0,0.00113347]
[1762775865964,1.92178607,106220.0,106210.0,0.00113347]
[1762775869572,2.26260607,106220.0,106210.0,0.00113347]
[1762775870489,1.93063748,106220.0,106210.0,0.00113347]
[1762775870691,2.26260607,106220.0,106210.0,0.00113347]
[1762775871315,2.25377424,106220.0,106210.0,0.00113347]
[1762775871524,2.23611058,106220.0,106210.0,0.00113347]
[1762775872096,2.26260452,106220.0,106210.0,0.00113347]
[1762775872291,2.25377321,106220.0,106210.0,0.00113347]
[1762775872908,2.2626043,106220.0,106210.0,0.00113347]
[1762775873107,1.26669853,106220.0,106210.0,0.00113347]
[1762775873314,2.25377321,106220.0,106210.0,0.00113347]
[1762775874814,2.26260375,106220.0,106210.0,0.00113347]
[1762775875401,2.26260375,106220.0,106210.0,0.00101531]
[1762775876533,2.26260131,106220.0,106210.0,0.00101531]
[1762775877185,2.25377321,106220.0,106210.0,0.00101531]
[1762775877381,1.62393189,106220.0,106210.0,0.00101531]
[1762775877558,1.5986481,106220.0,106210.0,0.00101531]
[1762775881045,0.93471092,106220.0,106210.0,0.00101531]
[1762775881245,1.4982561,106220.0,106210.0,0.00101531]
[1762775882285,1.4568961,106220.0,106210.0,0.00101531]
[1762775882687,1.59635783,106220.0,106210.0,0.00101531]
[1762775883346,1.55499783,106220.0,106210.0,0.00101531]
[1762775883555,1.59635783,106220.0,106210.0,0.00101531]
[1762775886227,1.3309971,106220.0,106210.0,0.00101531]
[1762775886407,0.99902851,106220.0,106210.0,0.00101531]
[1762775886610,1.04038851,106220.0,106210.0,0.00101531]
[1762775886792,1.3723571,106220.0,106210.0,0.00101531]
[1762775887587,0.98394642,106220.0,106210.0,0.00101531]
[1762775887766,0.25934908,106220.0,106210.0,0.00101531]
[1762775887970,0.25934908,106220.0,106210.0,0.18932149]
[1762775887971,0.24168645,106220.0,106210.0,0.18932149]
[1762775888882,0.053398,106220.0,106210.0,0.18932149]
[1762775889119,0.051398,106220.0,106210.0,0.18932149]
[1762775889275,0.049398,106220.0,106210.0,0.18932149]
[1762775889665,0.050398,106220.0,106210.0,0.18932149]
[1762775889866,0.050398,106220.0,106210.0,0.18979225]
[1762775889867,0.051398,106220.0,106210.0,0.18979225]
[1762775890038,0.051398,106220.0,106210.0,0.18932149]
[1762775890836,0.011848,106220.0,106210.0,0.21341149]
[1762775891045,0.011848,106220.0,106210.0,0.21388225]
[1762775891382,0.011848,106220.0,106210.0,0.21341149]
[1762775891713,0.011848,106220.0,106210.0,0.54585084]
[1762775892532,0.011848,106220.0,106210.0,0.54538008]
[1762775892960,0.011848,106220.0,106210.0,0.21341149]
[1762775893726,0.011848,106220.0,106210.0,0.54528567]
[1762775893912,0.011848,106220.0,106210.0,0.21341149]
[1762775894112,0.011848,106220.0,106210.0,0.54528567]
[1762775894719,0.011848,106220.0,106210.0,0.54575643]
[1762775895474,0.011848,106220.0,106210.0,0.54528567]
[1762775896492,0.011848,106220.0,106210.0,0.54575643]
[1762775897003,0.011848,106220.0,106210.0,0.54528567]
[1762775897224,0.011848,106220.0,106210.0,0.54575643]
[1762775897423,0.011848,106220.0,106210.0,0.56998567]
[1762775897578,0.010848,106220.0,106210.0,0.56998567]
[1762775897783,0.001048,106220.0,106210.0,0.57198567]
[1762775897985,4.8e-05,106220.0,106210.0,0.57198567]
[1762775898166,4.8e-05,106220.0,106210.0,0.57298567]
[1762775898776,4.8e-05,106220.0,106210.0,0.57345643]
[1762775902094,4.8e-05,106220.0,106210.0,0.66345643]
[1762775902501,4.8e-05,106220.0,106210.0,0.66298567]
[1762775903351,4.8e-05,106220.0,106210.0,0.66345643]
[1762775904315,0.011948,106220.0,106210.0,0.30688225]
[1762775904520,0.034568,106220.0,106210.0,0.30688225]
[1762775904946,0.011948,106220.0,106210.0,0.30688225]
[1762775905553,0.011948,106220.0,106210.0,0.33173225]
[1762775908693,4.8e-05,106220.0,106210.0,0.66360643]
[1762775908894,4.8e-05,106220.0,106210.0,0.33173225]
[1762775909160,4.8e-05,106220.0,106210.0,0.66360643]
[1762775909563,4.8e-05,106220.0,106210.0,0.80930643]
[1762775916147,4.8e-05,106220.0,106210.0,0.47743225]
[1762775917602,4.8e-05,106220.0,106210.0,0.80930643]
[1762775918117,4.8e-05,106220.0,106210.0,0.47743225]
[1762775918704,4.8e-05,106220.0,106210.0,0.33173225]
[1762775918911,4.8e-05,106220.0,106210.0,0.66360643]
[1762775921483,4.8e-05,106220.0,106210.0,0.33173225]
[1762775921655,4.8e-05,106220.0,106210.0,0.66360643]
[1762775922070,4.8e-05,106220.0,106210.0,0.33173225]
[1762775922915,4.8e-05,106220.0,106210.0,0.66360643]
[1762775924580,0.050838,106220.0,106210.0,0.29112225]
[1762775925240,0.011948,106220.0,106210.0,0.30616225]
[1762775925446,0.011948,106220.0,106210.0,0.63803643]
[1762775925959,0.011948,106220.0,106210.0,0.30616225]
[1762775926991,4.8e-05,106220.0,106210.0,0.33101225]
[1762775927334,4.8e-05,106220.0,106210.0,0.63803643]
[1762775927335,0.011948,106220.0,106210.0,0.63803643]
[1762775927901,0.011948,106220.0,106210.0,0.30616225]
[1762775929925,0.011948,106220.0,106210.0,0.45186225]
[1762775931438,0.011948,106220.0,106210.0,0.78373643]
[1762775932209,0.011948,106220.0,106210.0,0.80636643]
[1762775932403,4.8e-05,106220.0,106210.0,0.80589567]
[1762775932841,4.8e-05,106220.0,106210.0,0.80636643]
[1762775934346,4.8e-05,106220.0,106210.0,0.78373643]
[1762775935503,4.8e-05,106220.0,106210.0,0.45186225]
[1762775935732,4.8e-05,106220.0,106210.0,0.78373643]
[1762775937560,4.8e-05,106220.0,106210.0,0.45186225]
[1762775939055,0.18833645,106220.0,106210.0,0.45186225]
[1762775939262,0.012408,106220.0,106210.0,0.45139149]
[1762775939566,0.012408,106220.0,106210.0,0.45186225]
[1762775940355,4.8e-05,106220.0,106210.0,0.80772643]
[1762775940887,4.8e-05,106220.0,106210.0,0.47585225]
[1762775941287,0.18833645,106220.0,106210.0,0.45186225]
[1762775941497,4.8e-05,106220.0,106210.0,0.45139149]
[1762775941747,0.24103645,106220.0,106210.0,0.43682225]
[1762775941983,0.24103645,106220.0,106210.0,0.43635149]
[1762775942838,0.052748,106220.0,106210.0,0.43635149]
[1762775943036,0.052748,106220.0,106210.0,0.43682225]
[1762775947351,0.028318,106220.0,106210.0,0.43682225]
[1762775947558,0.052748,106220.0,106210.0,0.43682225]
[1762775948547,0.012408,106220.0,106210.0,0.45239225]
[1762775952250,0.012408,106220.0,106210.0,0.45192149]
[1762775953020,0.052748,106220.0,106210.0,0.29065149]
[1762775953219,0.052748,106220.0,106210.0,1.31698845]
[1762775953220,4.8e-05,106220.0,106210.0,1.31698845]
[1762775953448,4.8e-05,106220.0,106210.0,1.39278523]
[1762775953449,8e-06,106220.0,106210.0,1.39278523]
[1762775953640,8e-06,106220.0,106210.0,1.08915737]
[1762775953906,8e-06,106220.0,106210.0,1.42104585]
[1762775955120,8e-06,106220.0,106210.0,1.42004585]
[1762775955333,8e-06,106220.0,106210.0,1.41804585]
[1762775955535,8e-06,106220.0,106210.0,1.45575737]
[1762775955751,8e-06,106220.0,106210.0,1.45922813]
[1762775955956,8e-06,106220.0,106210.0,1.54376314]
[1762775956389,8e-06,106220.0,106210.0,1.45922813]
[1762775958054,8e-06,106220.0,106210.0,1.42304585]
[1762775959247,8e-06,106220.0,106210.0,1.56874585]
[1762775960701,8e-06,106220.0,106210.0,1.42304585]
[1762775965288,8e-06,106220.0,106210.0,1.01583135]
[1762775971099,8e-06,106220.0,106210.0,1.16153135]
[1762775972087,8e-06,106220.0,106210.0,0.83806059]
[1762775972291,8e-06,106220.0,106210.0,0.83853135]
[1762775975507,8e-06,106220.0,106210.0,0.36094287]
[1762775975713,8e-06,106220.0,106210.0,0.66409997]
[1762775977126,8e-06,106220.0,106210.0,0.33221149]
[1762775977308,8e-06,106220.0,106210.0,0.66409997]
[1762775978815,8e-06,106220.0,106210.0,0.66409997]
[1762775981224,0.052948,106220.0,106210.0,0.28432149]
[1762775981843,0.052948,106220.0,106210.0,0.61620997]
[1762775982186,0.052948,106220.0,106210.0,0.62453997]
[1762775982408,0.027948,106220.0,106210.0,0.62453997]
[1762775983440,0.011768,106220.0,106210.0,0.64095997]
[1762775983621,0.011768,106220.0,106210.0,0.30907149]
[1762775983836,0.011768,106220.0,106210.0,0.66391997]
[1762775984871,8e-06,106220.0,106210.0,0.66391997]
[1762775988797,0.011768,106220.0,106210.0,0.64095997]
[1762775990091,0.052948,106220.0,106210.0,0.30907149]
[1762775990291,0.052948,106220.0,106210.0,0.62453997]
[1762775990497,0.052948,106220.0,106210.0,0.28432149]
[1762775990699,0.052948,106220.0,106210.0,0.61620997]
[1762775991526,0.052948,106220.0,106210.0,0.76190997]
[1762775991749,0.24123645,106220.0,106210.0,0.76190997]
[1762775991940,0.24123645,106220.0,106210.0,0.43002149]
[1762775991941,0.052948,106220.0,106210.0,0.43002149]
[1762775992195,0.24123645,106220.0,106210.0,0.76190997]
[1762775992399,0.24123645,106220.0,106210.0,0.43002149]
[1762775992699,0.052948,106220.0,106210.0,0.43002149]
[1762775993431,0.052948,106220.0,106210.0,0.62453997]